fUST/lending_fUST_20250925
["ID","MTS","AMOUNT","RATE_DAILY","PERIOD"]
[387555279,1758766242199,-480.0,0.00019452,2]
[387555280,1758766242208,-151.83079,0.00019452,2]
[387555281,1758766242217,-152.401189,0.00019452,2]
[387555282,1758766242226,-721.08,0.00019452,2]
[387555283,1758766242235,-480.0,0.00019452,2]
[387555284,1758766242245,-588.34,0.00019452,2]
[387555285,1758766242262,-832.68,0.00019452,2]
[387555286,1758766242271,-996.39,0.00019452,2]
[387555287,1758766242280,-153.124884,0.00019452,2]
[387555288,1758766242289,-480.0,0.00019452,2]
[387555289,1758766242298,-480.0,0.00019452,2]
[387555290,1758766242307,-480.0,0.00019452,2]
[387555291,1758766242316,-480.0,0.00019452,2]
[387555292,1758766242326,-480.0,0.00019452,2]
[387555293,1758766242335,-480.0,0.00019452,2]
[387555294,1758766242344,-480.0,0.00019452,2]
[387555295,1758766242354,-480.0,0.00019452,2]
[387555296,1758766242363,-895.99,0.00019452,2]
[387555297,1758766242373,-480.0,0.00019452,2]
[387555298,1758766242382,-480.0,0.00019452,2]
[387555299,1758766242392,-157.940762,0.00019452,2]
[387555300,1758766242402,-157.940762,0.00019452,2]
[387555301,1758766242411,-480.0,0.00019452,2]
[387555302,1758766242421,-151.0,0.00019452,2]
[387555303,1758766242430,-157.940762,0.00019452,2]
[387555304,1758766242439,-157.940762,0.00019452,2]
[387555305,1758766242449,-480.0,0.00019452,2]
[387555306,1758766242458,-747.57,0.00019452,2]
[387555307,1758766242467,-155.518796,0.00019452,2]
[387555308,1758766242477,-2319.69,0.00019452,2]
[387555309,1758766242493,-480.0,0.00019452,2]
[387555310,1758766242502,-480.0,0.00019452,2]
[387555311,1758766242626,-561.41,0.00019452,2]
[387555312,1758766242638,-1621.46,0.00019452,2]
[387555313,1758766242648,-151.0,0.00019452,2]
[387555314,1758766242658,-480.0,0.00019452,2]
[387555315,1758766242667,-480.0,0.00019452,2]
[387555316,1758766242676,-536.12728573,0.00019452,2]
[387555317,1758766242686,-151.0,0.00019452,2]
[387555318,1758766242695,-151.0,0.00019452,2]
[387555319,1758766242704,-480.0,0.00019452,2]
[387555320,1758766242713,-1081.32,0.00019452,2]
[387555321,1758766242722,-151.0,0.00019452,2]
[387555322,1758766242732,-151.0,0.00019452,2]
[387555323,1758766242741,-504.56,0.00019452,2]
[387555324,1758766242750,-1354.11,0.00019452,2]
[387555325,1758766242760,-332.58785924,0.00019473,2]
[387555326,1758766242769,-168.0,0.00019525,2]
[387555327,1758766242779,-500.0,0.00019547,2]
[387555328,1758766242789,-483.11426765,0.00019614,2]
[387555329,1758766242798,-169.95,0.00019626,2]
[387555330,1758766242808,-482.8,0.00019726,2]
[387555331,1758766242818,-480.0,0.00019726,2]
[387555332,1758766242827,-480.0,0.00019726,2]
[387555333,1758766242836,-480.0,0.00019726,2]
[387555334,1758766242845,-620.70816975,0.00019726,2]
[387555335,1758766242855,-480.0,0.00019726,2]
[387555336,1758766242864,-151.0,0.00019726,2]
[387555337,1758766242873,-572.36,0.00019726,2]
[387555338,1758766242883,-480.0,0.00019726,2]
[387555339,1758766242893,-304.42457403,0.00019726,2]
[387555340,1758766242903,-151.0,0.00019726,2]
[387555341,1758766242913,-157.859911,0.00019726,2]
[387555342,1758766242923,-783.15,0.00019726,2]
[387555343,1758766242931,-1015.1,0.00019726,2]
[387555344,1758766242941,-480.0,0.00019726,2]
[387555345,1758766242950,-662.93,0.00019726,2]
[387555346,1758766242960,-592.93,0.00019726,2]
[387555347,1758766242969,-175.874371,0.00019726,2]
[387555348,1758766242978,-795.77,0.00019726,2]
[387555349,1758766242987,-480.0,0.00019726,2]
[387555350,1758766242997,-721.08,0.00019726,2]
[387555351,1758766243006,-480.0,0.00019726,2]
[387555352,1758766243016,-588.34,0.00019726,2]
[387555353,1758766243026,-832.68,0.00019726,2]
[387555354,1758766243036,-996.39,0.00019726,2]
[387555355,1758766243045,-480.0,0.00019726,2]
[387555356,1758766243055,-480.0,0.00019726,2]
[387555357,1758766243065,-480.0,0.00019726,2]
[387555358,1758766243074,-480.0,0.00019726,2]
[387555359,1758766243085,-480.0,0.00019726,2]
[387555360,1758766243094,-480.0,0.00019726,2]
[387555361,1758766243103,-480.0,0.00019726,2]
[387555362,1758766243113,-480.0,0.00019726,2]
[387555363,1758766243122,-895.99,0.00019726,2]
[387555364,1758766243132,-480.0,0.00019726,2]
[387555365,1758766243141,-480.0,0.00019726,2]
[387555366,1758766243153,-157.940762,0.00019726,2]
[387555367,1758766243162,-480.0,0.00019726,2]
[387555368,1758766243172,-157.940762,0.00019726,2]
[387555369,1758766243182,-157.062607,0.00019726,2]
[387555370,1758766243191,-157.940762,0.00019726,2]
[387555371,1758766243201,-157.940762,0.00019726,2]
[387555372,1758766243210,-480.0,0.00019726,2]
[387555375,1758766243220,-747.57,0.00019726,2]
[387555377,1758766243229,-2319.69,0.00019726,2]
[387555378,1758766243240,-480.0,0.00019726,2]
[387555380,1758766243249,-480.0,0.00019726,2]
[387555382,1758766243259,-561.41,0.00019726,2]
[387555385,1758766243268,-1621.46,0.00019726,2]
[387555387,1758766243278,-151.0,0.00019726,2]
[387555390,1758766243287,-480.0,0.00019726,2]
[387555393,1758766243296,-480.0,0.00019726,2]
[387555396,1758766243306,-151.0,0.00019726,2]
[387555399,1758766243315,-174.847225,0.00019726,2]
[387555402,1758766243324,-480.0,0.00019726,2]
[387555405,1758766243334,-1081.32,0.00019726,2]
[387555407,1758766243343,-197.81317,0.00019726,2]
[387555411,1758766243353,-504.56,0.00019726,2]
[387555413,1758766243362,-1354.11,0.00019726,2]
[387555416,1758766243372,-1773.8828629,0.00019752,2]
[387555418,1758766243382,-500.0,0.00019821,2]
[387555422,1758766243401,-1007.71539267,0.00019921,2]
[387555425,1758766243412,-1006.60646696,0.00019921,2]
[387555428,1758766243421,-1004.82817551,0.00019921,2]
[387555430,1758766243431,-1000.0,0.00019921,2]
[387555431,1758766243440,-1006.21562887,0.00019921,2]
[387555433,1758766243449,-869.53540277,0.00019921,2]
[387555435,1758766243459,-610.2293902,0.00019921,2]
[387555437,1758766243468,-1000.0,0.00019921,2]
[387555439,1758766243478,-1000.0,0.00019921,2]
[387555441,1758766243487,-1000.0,0.00019921,2]
[387555443,1758766243497,-1000.0,0.00019921,2]
[387555445,1758766243507,-1000.0,0.00019921,2]
[387555447,1758766243516,-1000.0,0.00019921,2]
[387555449,1758766243525,-1000.0,0.00019921,2]
[387555451,1758766243535,-540.23955231,0.00019921,2]
[387555453,1758766243545,-1000.0,0.00019921,2]
[387555455,1758766243556,-1000.0,0.00019921,2]
[387555457,1758766243566,-1000.0,0.00019921,2]
[387555459,1758766243575,-163.077903,0.00019921,2]
[387555461,1758766243585,-151.0,0.00019921,2]
[387555463,1758766243595,-157.940762,0.00019921,2]
[387555465,1758766243604,-157.940762,0.00019921,2]
[387555467,1758766243614,-157.940762,0.00019921,2]
[387555469,1758766243624,-157.940762,0.00019921,2]
[387555471,1758766243637,-151.0,0.00019921,2]
[387555473,1758766243650,-151.0,0.00019921,2]
[387555475,1758766243659,-42451.66368277,0.0001999,2]
[387555477,1758766243669,-152.818965,0.0001999,2]
[387555479,1758766243678,-157.940762,0.0001999,2]
[387555480,1758766243687,-157.940762,0.0001999,2]
[387555482,1758766243697,-157.940762,0.0001999,2]
[387555484,1758766243706,-157.940762,0.0001999,2]
[387555486,1758766243715,-151.0,0.0001999,2]
[387555488,1758766243726,-500.0,0.0002,2]
[387555490,1758766243735,-482.8,0.0002,2]
[387555492,1758766243745,-480.0,0.0002,2]
[387555493,1758766243754,-480.0,0.0002,2]
[387555496,1758766243764,-480.0,0.0002,2]
[387555498,1758766243774,-480.0,0.0002,2]
[387555499,1758766243783,-572.36,0.0002,2]
[387555501,1758766243793,-480.0,0.0002,2]
[387555503,1758766243804,-783.15,0.0002,2]
[387555505,1758766243813,-1015.1,0.0002,2]
[387555507,1758766243822,-480.0,0.0002,2]
[387555509,1758766243831,-662.93,0.0002,2]
[387555511,1758766243840,-592.93,0.0002,2]
[387555513,1758766243850,-795.77,0.0002,2]
[387555515,1758766243858,-480.0,0.0002,2]
[387555517,1758766243868,-721.08,0.0002,2]
[387555519,1758766243876,-480.0,0.0002,2]
[387555520,1758766243885,-588.34,0.0002,2]
[387555521,1758766243894,-832.68,0.0002,2]
[387555522,1758766243905,-996.39,0.0002,2]
[387555524,1758766243914,-480.0,0.0002,2]
[387555526,1758766243923,-480.0,0.0002,2]
[387555527,1758766243932,-480.0,0.0002,2]
[387555528,1758766243941,-480.0,0.0002,2]
[387555529,1758766243950,-480.0,0.0002,2]
[387555531,1758766243959,-480.0,0.0002,2]
[387555533,1758766243969,-480.0,0.0002,2]
[387555535,1758766243978,-480.0,0.0002,2]
[387555537,1758766243987,-895.99,0.0002,2]
[387555539,1758766243997,-480.0,0.0002,2]
[387555541,1758766244006,-480.0,0.0002,2]
[387555543,1758766244015,-480.0,0.0002,2]
[387555545,1758766244024,-480.0,0.0002,2]
[387555547,1758766244034,-747.57,0.0002,2]
[387555549,1758766244043,-183.73007889,0.0002,2]
[387555551,1758766244052,-2319.69,0.0002,2]
[387555553,1758766244061,-480.0,0.0002,2]
[387555555,1758766244070,-561.41,0.0002,2]
[387555557,1758766244080,-1621.46,0.0002,2]
[387555559,1758766244089,-480.0,0.0002,2]
[387555561,1758766244098,-480.0,0.0002,2]
[387555563,1758766244108,-480.0,0.0002,2]
[387555565,1758766244117,-1081.32,0.0002,2]
[387555567,1758766244127,-504.56,0.0002,2]
[387555569,1758766244137,-1354.11,0.0002,2]
[387555570,1758766244146,-500.0,0.00020095,2]
[387555571,1758766244157,-250.0,0.00020105,2]
[387555572,1758766244166,-152.3902631,0.000202,2]
[387555573,1758766244176,-157.940762,0.00020209,2]
[387555574,1758766244185,-157.940762,0.00020209,2]
[387555575,1758766244194,-157.940762,0.00020209,2]
[387555576,1758766244203,-157.940753,0.00020209,2]
[387555577,1758766244211,-482.8,0.00020273,2]
[387555578,1758766244221,-480.0,0.00020273,2]
[387555579,1758766244230,-480.0,0.00020273,2]
[387555580,1758766244238,-480.0,0.00020273,2]
[387555581,1758766244248,-480.0,0.00020273,2]
[387555582,1758766244257,-572.36,0.00020273,2]
[387555583,1758766244266,-480.0,0.00020273,2]
[387555584,1758766244275,-783.15,0.00020273,2]
[387555585,1758766244284,-1015.1,0.00020273,2]
[387555586,1758766244293,-480.0,0.00020273,2]
[387555587,1758766244302,-662.93,0.00020273,2]
[387555588,1758766244311,-592.93,0.00020273,2]
[387555589,1758766244320,-795.77,0.00020273,2]
[387555590,1758766244329,-480.0,0.00020273,2]
[387555591,1758766244338,-721.08,0.00020273,2]
[387555592,1758766244347,-480.0,0.00020273,2]
[387555593,1758766244357,-588.34,0.00020273,2]
[387555594,1758766244366,-832.68,0.00020273,2]
[387555595,1758766244375,-996.39,0.00020273,2]
[387555596,1758766244384,-480.0,0.00020273,2]
[387555597,1758766244393,-480.0,0.00020273,2]
[387555598,1758766244404,-480.0,0.00020273,2]
[387555599,1758766244413,-480.0,0.00020273,2]
[387555600,1758766244422,-480.0,0.00020273,2]
[387555601,1758766244431,-480.0,0.00020273,2]
[387555602,1758766244440,-480.0,0.00020273,2]
[387555603,1758766244449,-480.0,0.00020273,2]
[387555604,1758766244458,-895.99,0.00020273,2]
[387555605,1758766244467,-480.0,0.00020273,2]
[387555606,1758766244476,-480.0,0.00020273,2]
[387555607,1758766244487,-480.0,0.00020273,2]
[387555608,1758766244496,-480.0,0.00020273,2]
[387555609,1758766244505,-747.57,0.00020273,2]
[387555610,1758766244514,-2319.69,0.00020273,2]
[387555611,1758766244523,-480.0,0.00020273,2]
[387555612,1758766244532,-561.41,0.00020273,2]
[387555613,1758766244541,-1621.46,0.00020273,2]
[387555614,1758766244550,-480.0,0.00020273,2]
[387555615,1758766244563,-480.0,0.00020273,2]
[387555617,1758766244572,-151.0,0.00020273,2]
[387555619,1758766244582,-480.0,0.00020273,2]
[387555621,1758766244592,-1081.32,0.00020273,2]
[387555623,1758766244602,-504.56,0.00020273,2]
[387555624,1758766244611,-1354.11,0.00020273,2]
[387555626,1758766244623,-500.0,0.00020369,2]
[387555629,1758766244635,-731.55768368,0.00020468,2]
[387555631,1758766244646,-505.5219847,0.00020468,2]
[387555633,1758766244657,-510.47010389,0.00020468,2]
[387555634,1758766244666,-848.64461143,0.00020468,2]
[387555636,1758766244675,-505.20370892,0.00020468,2]
[387555638,1758766244685,-1018.67734607,0.00020468,2]
[387555640,1758766244694,-1500.0,0.00020468,2]
[387555642,1758766244704,-1016.32501829,0.00020468,2]
[387555644,1758766244713,-1500.0,0.00020468,2]
[387555646,1758766244723,-1029.59561367,0.00020468,2]
[387555648,1758766244732,-1504.89489278,0.00020468,2]
[387555650,1758766244743,-157.3356586,0.00020482,2]
[387555652,1758766244753,-482.8,0.00020547,2]
[387555654,1758766244762,-480.0,0.00020547,2]
[387555656,1758766244771,-480.0,0.00020547,2]
[387555659,1758766244781,-480.0,0.00020547,2]
[387555661,1758766244790,-480.0,0.00020547,2]
[387555663,1758766244799,-572.36,0.00020547,2]
[387555665,1758766244808,-480.0,0.00020547,2]
[387555666,1758766244817,-783.15,0.00020547,2]
[387555668,1758766244826,-1015.1,0.00020547,2]
[387555670,1758766244836,-480.0,0.00020547,2]
[387555672,1758766244845,-592.93,0.00020547,2]
[387555675,1758766244855,-662.93,0.00020547,2]
[387555677,1758766244865,-795.77,0.00020547,2]
[387555678,1758766244874,-480.0,0.00020547,2]
[387555680,1758766244883,-721.08,0.00020547,2]
[387555682,1758766244892,-480.0,0.00020547,2]
[387555684,1758766244902,-588.34,0.00020547,2]
[387555686,1758766244912,-832.68,0.00020547,2]
[387555688,1758766244921,-996.39,0.00020547,2]
[387555690,1758766244930,-480.0,0.00020547,2]
[387555692,1758766244939,-480.0,0.00020547,2]
[387555694,1758766244948,-480.0,0.00020547,2]
[387555696,1758766244958,-235.2607604,0.00020547,2]
[387555698,1758766244967,-480.0,0.00020547,2]
[387555700,1758766244976,-480.0,0.00020547,2]
[387555702,1758766244985,-480.0,0.00020547,2]
[387555704,1758766244994,-480.0,0.00020547,2]
[387555706,1758766245003,-895.99,0.00020547,2]
[387555708,1758766245013,-480.0,0.00020547,2]
[387555710,1758766245022,-480.0,0.00020547,2]
[387555712,1758766245031,-480.0,0.00020547,2]
[387555714,1758766245041,-480.0,0.00020547,2]
[387555716,1758766245051,-747.57,0.00020547,2]
[387555718,1758766245060,-2319.69,0.00020547,2]
[387555720,1758766245069,-480.0,0.00020547,2]
[387555722,1758766245078,-561.41,0.00020547,2]
[387555724,1758766245087,-1621.46,0.00020547,2]
[387555726,1758766245097,-480.0,0.00020547,2]
[387555728,1758766245106,-480.0,0.00020547,2]
[387555730,1758766245115,-480.0,0.00020547,2]
[387555732,1758766245124,-1081.32,0.00020547,2]
[387555734,1758766245134,-504.56,0.00020547,2]
[387555736,1758766245143,-1354.11,0.00020547,2]
[387555738,1758766245154,-500.0,0.00020643,2]
[387555740,1758766245163,-781.04,0.00020712,3]
[387555742,1758766245172,-390.52,0.00020712,3]
[387555744,1758766245182,-4586.0,0.00020713,2]
[387555746,1758766245191,-500.0,0.000208,2]
[387555748,1758766245201,-501.7140521,0.000208,2]
[387555750,1758766245210,-502.01785286,0.000208,2]
[387555752,1758766245219,-501.64480659,0.00020815,2]
[387555753,1758766245229,-501.51328029,0.00020815,2]
[387555755,1758766245238,-500.0,0.00020817,2]
[387555757,1758766245247,-500.0,0.00020817,2]
[387555759,1758766245258,-500.0,0.00020817,2]
[387555762,1758766245268,-482.8,0.00020821,2]
[387555764,1758766245278,-480.0,0.00020821,2]
[387555765,1758766245287,-480.0,0.00020821,2]
[387555767,1758766245299,-480.0,0.00020821,2]
[387555769,1758766245308,-480.0,0.00020821,2]
[387555771,1758766245318,-572.36,0.00020821,2]
[387555773,1758766245327,-480.0,0.00020821,2]
[387555775,1758766245337,-783.15,0.00020821,2]
[387555777,1758766245346,-1015.1,0.00020821,2]
[387555779,1758766245355,-480.0,0.00020821,2]
[387555781,1758766245364,-592.93,0.00020821,2]
[387555783,1758766245375,-662.93,0.00020821,2]
[387555785,1758766245385,-795.77,0.00020821,2]
[387555787,1758766245395,-299.75954113,0.00020821,2]
[387555789,1758766245406,-721.08,0.00020821,2]
[387555791,1758766245415,-480.0,0.00020821,2]
[387555793,1758766245425,-588.34,0.00020821,2]
[387555795,1758766245435,-832.68,0.00020821,2]
[387555797,1758766245445,-996.39,0.00020821,2]
[387555799,1758766245454,-480.0,0.00020821,2]
[387555801,1758766245463,-480.0,0.00020821,2]
[387555803,1758766245473,-480.0,0.00020821,2]
[387555804,1758766245482,-480.0,0.00020821,2]
[387555806,1758766245491,-480.0,0.00020821,2]
[387555808,1758766245500,-480.0,0.00020821,2]
[387555810,1758766245509,-480.0,0.00020821,2]
[387555812,1758766245518,-895.99,0.00020821,2]
[387555814,1758766245527,-480.0,0.00020821,2]
[387555816,1758766245537,-480.0,0.00020821,2]
[387555818,1758766245546,-480.0,0.00020821,2]
[387555820,1758766245559,-480.0,0.00020821,2]
[387555822,1758766245568,-747.57,0.00020821,2]
[387555824,1758766245579,-2319.69,0.00020821,2]
[387555826,1758766245588,-480.0,0.00020821,2]
[387555828,1758766245598,-561.41,0.00020821,2]
[387555830,1758766245607,-1621.46,0.00020821,2]
[387555832,1758766245618,-479.66633549,0.00020821,2]
[387555834,1758766245628,-480.0,0.00020821,2]
[387555836,1758766245640,-480.0,0.00020821,2]
[387555838,1758766245651,-1081.32,0.00020821,2]
[387555840,1758766245660,-504.56,0.00020821,2]
[387555842,1758766245670,-1354.11,0.00020821,2]
[387555844,1758766245680,-500.0,0.00020824,2]
[387555846,1758766245689,-501.31987284,0.00020832,2]
[387555848,1758766245698,-500.0,0.00020843,2]
[387555850,1758766245707,-501.49750944,0.00020843,2]
[387555852,1758766245717,-503.84850847,0.00020843,2]
[387555853,1758766245727,-500.0,0.00020845,2]
[387555866,1758766245837,-359.05997223,0.00020852,2]
[387555868,1758766245847,-500.36552532,0.00020857,2]
[387555870,1758766245856,-500.0,0.00020873,2]
[387555872,1758766245865,-500.0,0.00020917,2]
[387555874,1758766245875,-201.99,0.00020949,2]
[387555876,1758766245884,-688.36606718,0.00021,10]
[387555878,1758766245893,-1011.73043267,0.00021016,2]
[387555880,1758766245904,-1829.89320392,0.00021016,2]
[387555882,1758766245913,-489.95030415,0.00021058,2]
[387555884,1758766245922,-482.8,0.00021095,2]
[387555886,1758766245932,-480.0,0.00021095,2]
[387555889,1758766245941,-480.0,0.00021095,2]
[387555891,1758766245951,-429.10296742,0.00021095,2]
[387555893,1758766245961,-480.0,0.00021095,2]
[387555895,1758766245970,-572.36,0.00021095,2]
[387555897,1758766245979,-480.0,0.00021095,2]
[387555898,1758766245988,-783.15,0.00021095,2]
[387555900,1758766245998,-1015.1,0.00021095,2]
[387555902,1758766246008,-480.0,0.00021095,2]
[387555904,1758766246017,-592.93,0.00021095,2]
[387555906,1758766246026,-662.93,0.00021095,2]
[387555908,1758766246036,-795.77,0.00021095,2]
[387555910,1758766246046,-721.08,0.00021095,2]
[387555913,1758766246054,-456.01057069,0.00021095,2]
[387555916,1758766246063,-588.34,0.00021095,2]
[387555918,1758766246073,-832.68,0.00021095,2]
[387555920,1758766246084,-996.39,0.00021095,2]
[387555922,1758766246094,-480.0,0.00021095,2]
[387555924,1758766246103,-480.0,0.00021095,2]
[387555926,1758766246114,-480.0,0.00021095,2]
[387555928,1758766246124,-244.43148459,0.00021095,2]
[387555930,1758766246133,-480.0,0.00021095,2]
[387555932,1758766246143,-202.32826478,0.00021095,2]
[387555934,1758766246154,-480.0,0.00021095,2]
[387555937,1758766246163,-895.99,0.00021095,2]
[387555940,1758766246172,-480.0,0.00021095,2]
[387555942,1758766246181,-480.0,0.00021095,2]
[387555944,1758766246190,-480.0,0.00021095,2]
[387555946,1758766246201,-480.0,0.00021095,2]
[387555948,1758766246210,-747.57,0.00021095,2]
[387555950,1758766246219,-2319.69,0.00021095,2]
[387555952,1758766246229,-480.0,0.00021095,2]
[387555954,1758766246239,-561.41,0.00021095,2]
[387555956,1758766246248,-1621.46,0.00021095,2]
[387555958,1758766246257,-480.0,0.00021095,2]
[387555960,1758766246267,-480.0,0.00021095,2]
[387555962,1758766246277,-1081.32,0.00021095,2]
[387555964,1758766246286,-504.56,0.00021095,2]
[387555966,1758766246296,-168.63354543,0.00021148,2]
[387555968,1758766246306,-513.66390274,0.00021191,2]
[387555970,1758766246315,-418.60072527,0.00021348,2]
[387555972,1758766246324,-1000.0,0.00021365,2]
[387555974,1758766246335,-1000.0,0.00021365,2]
[387555977,1758766246345,-501.58013168,0.00021365,2]
[387555978,1758766246355,-482.8,0.00021369,2]
[387555980,1758766246364,-480.0,0.00021369,2]
[387555982,1758766246373,-480.0,0.00021369,2]
[387555983,1758766246383,-272.93999317,0.00021369,2]
[387555984,1758766246392,-572.36,0.00021369,2]
[387555985,1758766246402,-585.66665514,0.00021369,2]
[387555986,1758766246412,-783.15,0.00021369,2]
[387555987,1758766246421,-1015.1,0.00021369,2]
[387555988,1758766246430,-480.0,0.00021369,2]
[387555989,1758766246440,-592.93,0.00021369,2]
[387555990,1758766246450,-662.93,0.00021369,2]
[387555991,1758766246459,-795.77,0.00021369,2]
[387555992,1758766246469,-721.08,0.00021369,2]
[387555993,1758766246479,-588.34,0.00021369,2]
[387555994,1758766246488,-832.68,0.00021369,2]
[387555995,1758766246498,-996.39,0.00021369,2]
[387555996,1758766246508,-480.0,0.00021369,2]
[387555997,1758766246517,-480.0,0.00021369,2]
[387555998,1758766246527,-626.44291287,0.00021369,2]
[387555999,1758766246536,-319.27289765,0.00021369,2]
[387556000,1758766246547,-389.64572452,0.00021369,2]
[387556001,1758766246560,-895.99,0.00021369,2]
[387556002,1758766246570,-480.0,0.00021369,2]
[387556003,1758766246580,-480.0,0.00021369,2]
[387556004,1758766246590,-480.0,0.00021369,2]
[387556005,1758766246601,-480.0,0.00021369,2]
[387556006,1758766246611,-747.57,0.00021369,2]
[387556007,1758766246621,-2319.69,0.00021369,2]
[387556008,1758766246631,-480.0,0.00021369,2]
[387556009,1758766246642,-561.41,0.00021369,2]
[387556010,1758766246653,-1621.46,0.00021369,2]
[387556011,1758766246662,-480.0,0.00021369,2]
[387556012,1758766246672,-480.0,0.00021369,2]
[387556013,1758766246682,-1081.32,0.00021369,2]
[387556014,1758766246693,-504.56,0.00021369,2]
[387556015,1758766246703,-500.5620322,0.00021372,2]
[387556016,1758766246712,-501.05629741,0.00021376,2]
[387556017,1758766246723,-500.66169981,0.00021376,2]
[387556018,1758766246733,-501.44940855,0.00021391,2]
[387556019,1758766246743,-501.00712413,0.00021393,2]
[387556020,1758766246754,-1000.0,0.00021421,2]
[387556021,1758766246763,-160.0,0.0002152,2]
[387556022,1758766246772,-482.8,0.00021643,2]
[387556023,1758766246782,-480.0,0.00021643,2]
[387556024,1758766246792,-480.0,0.00021643,2]
[387556025,1758766246801,-572.36,0.00021643,2]
[387556026,1758766246812,-783.15,0.00021643,2]
[387556027,1758766246822,-1015.1,0.00021643,2]
[387556028,1758766246831,-480.0,0.00021643,2]
[387556029,1758766246841,-592.93,0.00021643,2]
[387556030,1758766246851,-662.93,0.00021643,2]
[387556031,1758766246860,-795.77,0.00021643,2]
[387556032,1758766246869,-721.08,0.00021643,2]
[387556033,1758766246879,-588.34,0.00021643,2]
[387556034,1758766246889,-996.39,0.00021643,2]
[387556035,1758766246898,-832.68,0.00021643,2]
[387556036,1758766246908,-480.0,0.00021643,2]
[387556037,1758766246917,-480.0,0.00021643,2]
[387556038,1758766246927,-895.99,0.00021643,2]
[387556039,1758766246936,-480.0,0.00021643,2]
[387556040,1758766246945,-480.0,0.00021643,2]
[387556041,1758766246955,-480.0,0.00021643,2]
[387556042,1758766246965,-480.0,0.00021643,2]
[387556043,1758766246974,-747.57,0.00021643,2]
[387556044,1758766246983,-2319.69,0.00021643,2]
[387556045,1758766246992,-480.0,0.00021643,2]
[387556046,1758766247002,-561.41,0.00021643,2]
[387556047,1758766247012,-1621.46,0.00021643,2]
[387556048,1758766247021,-480.0,0.00021643,2]
[387556049,1758766247032,-480.0,0.00021643,2]
[387556050,1758766247043,-1081.32,0.00021643,2]
[387556051,1758766247053,-157.3356586,0.00021691,2]
[387556052,1758766247063,-151.0,0.000217,4]
[387556053,1758766247072,-5000.0,0.00021843,2]
[387556054,1758766247082,-394.550624,0.00021888,2]
[387556055,1758766247091,-1500.0,0.00021913,2]
[387556056,1758766247101,-1500.0,0.00021913,2]
[387556057,1758766247110,-482.8,0.00021917,2]
[387556058,1758766247120,-480.0,0.00021917,2]
[387556059,1758766247129,-480.0,0.00021917,2]
[387556060,1758766247139,-572.36,0.00021917,2]
[387556061,1758766247148,-783.15,0.00021917,2]
[387556062,1758766247158,-1015.1,0.00021917,2]
[387556063,1758766247167,-480.0,0.00021917,2]
[387556064,1758766247177,-592.93,0.00021917,2]
[387556065,1758766247186,-662.93,0.00021917,2]
[387556066,1758766247196,-795.77,0.00021917,2]
[387556067,1758766247206,-721.08,0.00021917,2]
[387556068,1758766247215,-588.34,0.00021917,2]